bitfinex/quotes_BTCUSD_20241130
["timestamp","ask_amount","ask_price","bid_price","bid_amount"]
[1732948359047,0.39770258,96891.0,96890.0,0.00017886]
[1732948359531,0.39770258,96891.0,96890.0,0.00117886]
[1732948359759,0.39870258,96891.0,96890.0,0.00117886]
[1732948359981,0.40834257,96891.0,96890.0,0.00117886]
[1732948360431,0.50671554,96891.0,96890.0,0.00117886]
[1732948360700,0.13358143,96865.0,96864.0,0.0017332]
[1732948360925,0.23642664,96865.0,96864.0,0.00185041]
[1732948361789,0.23742664,96865.0,96864.0,0.00185041]
[1732948362662,0.23842664,96865.0,96864.0,0.00285041]
[1732948364247,0.20808121,96865.0,96864.0,0.00285041]
[1732948364512,0.21004415,96865.0,96864.0,0.00285041]
[1732948365189,0.23067871,96865.0,96864.0,0.00285041]
[1732948365457,0.22871577,96865.0,96864.0,0.00285041]
[1732948376452,0.27761577,96865.0,96864.0,0.00285041]
[1732948377529,0.27561577,96865.0,96864.0,0.00185041]
[1732948377717,0.27761577,96865.0,96864.0,0.00185041]
[1732948378185,0.27661577,96865.0,96864.0,0.00185041]
[1732948378557,0.27761577,96865.0,96864.0,0.00185041]
[1732948378716,0.27661577,96865.0,96864.0,0.00185041]
[1732948378932,0.27761577,96865.0,96864.0,0.00185041]
[1732948379135,0.3069612,96865.0,96864.0,0.00185041]
[1732948379547,0.3079612,96865.0,96864.0,0.00185041]
[1732948380386,0.30763253,96865.0,96864.0,0.00185041]
[1732948381220,0.30563253,96865.0,96864.0,0.00185041]
[1732948381648,0.30763253,96865.0,96864.0,0.00185041]
[1732948381878,0.30663253,96865.0,96864.0,0.00185041]
[1732948382107,0.30563253,96865.0,96864.0,0.00185041]
[1732948382335,0.30763253,96865.0,96864.0,0.00185041]
[1732948382954,0.30663253,96865.0,96864.0,0.00185041]
[1732948383157,0.30763253,96865.0,96864.0,0.00185041]
[1732948384047,0.30863253,96865.0,96864.0,0.00185041]
[1732948384522,0.30763253,96865.0,96864.0,0.00185041]
[1732948384750,0.30863253,96865.0,96864.0,0.00185041]
[1732948384975,0.30663253,96865.0,96864.0,0.00185041]
[1732948385431,0.30749913,96865.0,96864.0,0.00185041]
[1732948385660,0.30849913,96865.0,96864.0,0.00185041]
[1732948386098,0.30749913,96865.0,96864.0,0.00185041]
[1732948386563,0.30849913,96865.0,96864.0,0.00185041]
[1732948386783,0.25959913,96865.0,96864.0,0.00185041]
[1732948386999,0.25859913,96865.0,96864.0,0.00185041]
[1732948387231,0.26823932,96865.0,96864.0,0.00185041]
[1732948387452,0.26923932,96865.0,96864.0,0.00185041]
[1732948389284,0.26924808,96865.0,96864.0,0.00185041]
[1732948391527,0.30037018,96865.0,96864.0,0.00185041]
[1732948392033,0.30137018,96865.0,96864.0,0.00185041]
[1732948392247,0.30037018,96865.0,96864.0,0.00185041]
[1732948392465,0.11436076,96865.0,96864.0,0.10508741]
[1732948392675,0.0028666,96865.0,96864.0,0.23448741]
[1732948393336,0.0008666,96865.0,96864.0,0.23448741]
[1732948393768,0.0018666,96865.0,96864.0,0.23448741]
[1732948393971,0.0008666,96865.0,96864.0,0.24479765]
[1732948394415,0.0098666,96865.0,96864.0,0.23448741]
[1732948394648,0.0018666,96865.0,96864.0,0.23848741]
[1732948395054,0.0108666,96865.0,96864.0,0.23848741]
[1732948395269,0.0098666,96865.0,96864.0,0.23448741]
[1732948395471,0.21594781,96865.0,96864.0,0.00185041]
[1732948395689,0.12171181,96865.0,96864.0,0.10508741]
[1732948395926,0.0188666,96865.0,96864.0,0.23448741]
[1732948396338,0.0098666,96865.0,96864.0,0.23448741]
[1732948396729,0.0138666,96865.0,96864.0,0.23448741]
[1732948397196,0.0048666,96865.0,96864.0,0.23448741]
[1732948397955,0.0028666,96865.0,96864.0,0.23448741]
[1732948398176,0.0118666,96865.0,96864.0,0.23448741]
[1732948398385,0.0098666,96865.0,96864.0,0.23448741]
[1732948398595,0.0188666,96865.0,96864.0,0.23548741]
[1732948398841,0.0098666,96865.0,96864.0,0.23548741]
[1732948399064,0.0188666,96865.0,96864.0,0.23448741]
[1732948399474,0.0188666,96865.0,96864.0,0.64453832]
[1732948399726,0.0188666,96865.0,96864.0,0.23448741]
[1732948400346,0.0278666,96865.0,96864.0,0.23548741]
[1732948400551,0.0275379,96865.0,96864.0,0.23548741]
[1732948401850,0.0275379,96865.0,96864.0,0.18858741]
[1732948402054,0.0275379,96865.0,96864.0,0.10608741]
[1732948402263,0.0275379,96865.0,96864.0,0.25608741]
[1732948402469,0.0275379,96865.0,96864.0,0.00285041]
[1732948402670,0.0275379,96865.0,96864.0,0.10608741]
[1732948405249,0.13038311,96865.0,96864.0,0.00285041]
[1732948405923,0.23361911,96865.0,96864.0,0.00285041]
[1732948410523,0.2332894,96865.0,96864.0,0.00285041]
[1732948416616,0.1300534,96865.0,96864.0,0.00285041]
[1732948416816,0.2332894,96865.0,96864.0,0.00285041]
[1732948417468,0.2332894,96865.0,96864.0,0.23328741]
[1732948417469,0.02720819,96865.0,96864.0,0.23328741]
[1732948417815,0.02720819,96865.0,96864.0,0.18338741]
[1732948418022,0.02720819,96865.0,96864.0,0.10608741]
[1732948419190,0.1300534,96865.0,96864.0,0.00285041]
[1732948419328,0.1530534,96865.0,96864.0,0.00285041]
[1732948420184,0.2562894,96865.0,96864.0,0.00285041]
[1732948422940,0.1530534,96865.0,96864.0,0.00285041]
[1732948424277,0.1530534,96865.0,96864.0,0.10608741]
[1732948424494,0.02720819,96865.0,96864.0,0.10608741]
[1732948425781,0.02720819,96865.0,96864.0,0.00285041]
[1732948426519,0.02720819,96865.0,96864.0,0.10608741]
[1732948429107,0.02720819,96865.0,96821.0,0.0002787]
[1732948429325,0.02720819,96865.0,96864.0,0.103237]
[1732948429525,0.02720819,96865.0,96857.0,0.103244]
[1732948429954,0.01820819,96865.0,96851.0,0.206501]
[1732948430177,0.01820819,96865.0,96854.0,0.103247]
[1732948430412,0.01787951,96865.0,96855.0,0.00132088]
[1732948430654,0.009,96865.0,96854.0,0.103247]
[1732948430873,0.023,96868.0,96855.0,0.00182717]
[1732948431077,0.009,96865.0,96864.0,0.0017314]
[1732948431295,0.112236,96865.0,96864.0,0.0017314]
[1732948431550,0.1041017,96865.0,96864.0,0.0017314]
[1732948431771,0.1131017,96865.0,96864.0,0.0017314]
[1732948432343,0.23894691,96865.0,96864.0,0.0017314]
[1732948432751,0.24794691,96865.0,96864.0,0.0017314]
[1732948433161,0.23894691,96865.0,96864.0,0.0017314]
[1732948433368,0.29674691,96865.0,96864.0,0.0067314]
[1732948433671,0.27874691,96865.0,96864.0,0.0057314]
[1732948434104,0.27974691,96865.0,96864.0,0.0127314]
[1732948436365,0.28974691,96865.0,96864.0,0.0127314]
[1732948440524,0.2894172,96865.0,96864.0,0.0127314]
[1732948442949,0.2416172,96865.0,96864.0,0.0127314]
[1732948443184,0.24194691,96865.0,96864.0,0.0127314]
[1732948444057,0.0028657,96865.0,96864.0,0.1159684]
[1732948444302,0.0028657,96865.0,96864.0,0.01455832]
[1732948444533,0.0028657,96865.0,96864.0,0.11779532]
[1732948444984,0.0018657,96865.0,96864.0,0.11079532]
[1732948445202,0.0008657,96865.0,96864.0,0.10679532]
[1732948445408,0.0018657,96865.0,96864.0,0.11079532]
[1732948445639,0.0018657,96865.0,96864.0,0.00755832]
[1732948445852,0.0008657,96865.0,96864.0,0.10679532]
[1732948446272,0.0098657,96865.0,96864.0,0.10679532]
[1732948446725,0.0108657,96865.0,96864.0,0.11579532]
[1732948446937,0.0098657,96865.0,96864.0,0.10679532]
[1732948447390,0.0188657,96865.0,96864.0,0.10779532]
[1732948449146,0.0188657,96865.0,96864.0,0.00455832]
[1732948449361,0.0188657,96865.0,96864.0,0.10779532]
[1732948450016,0.0188657,96865.0,96864.0,0.00455832]
[1732948450210,0.0188657,96865.0,96864.0,0.10779532]
[1732948450865,0.0188657,96865.0,96864.0,0.00455832]
[1732948451068,0.0188657,96865.0,96864.0,0.0027314]
[1732948451503,0.12171091,96865.0,96864.0,0.0027314]
[1732948451732,0.25794691,96865.0,96864.0,0.0027314]
[1732948455360,0.23494691,96865.0,96864.0,0.0027314]
[1732948457317,0.28334691,96865.0,96864.0,0.0027314]
[1732948457559,0.28334691,96865.0,96830.0,0.206547]
[1732948457560,0.103256,96847.0,96835.0,0.15]
[1732948457781,0.01,96852.0,96840.0,0.01157128]
[1732948458001,0.18424521,96851.0,96841.0,0.0007833]
[1732948458254,0.18424521,96851.0,96841.0,0.00182746]
[1732948458496,0.103258,96844.0,96842.0,0.0018275]
[1732948458680,0.254907,96849.0,96840.0,0.00059599]
[1732948458859,0.103255,96847.0,96840.0,0.00242351]
[1732948459175,0.0484,96849.0,96840.0,0.00059599]
[1732948459375,0.103255,96848.0,96840.0,0.00242351]
[1732948459610,0.0484,96849.0,96841.0,0.00182753]
[1732948460297,0.10284521,96848.0,96840.0,0.00059599]
[1732948460512,0.009,96847.0,96841.0,0.001]
[1732948460737,0.10326,96842.0,96841.0,0.001]
[1732948460942,0.103262,96841.0,96840.0,0.00059599]
[1732948461150,0.10284521,96846.0,96840.0,0.00059599]
[1732948461360,0.10326,96843.0,96840.0,0.00059599]
[1732948461580,0.103257,96845.0,96840.0,0.00059599]
[1732948461799,0.103259,96844.0,96841.0,0.001]
[1732948462443,0.10284521,96846.0,96841.0,0.001]
[1732948462881,0.20610121,96846.0,96841.0,0.001]
[1732948463102,0.10326,96843.0,96840.0,0.00059599]
[1732948463354,0.103261,96842.0,96841.0,0.001]
[1732948463565,0.009,96843.0,96841.0,0.001]
[1732948464069,0.10326,96842.0,96841.0,0.001]
[1732948464284,0.11226,96843.0,96840.0,0.00159599]
[1732948464526,0.10326,96843.0,96840.0,0.00059599]
[1732948464782,0.12126,96842.0,96841.0,0.0027314]
[1732948466094,0.10326,96842.0,96841.0,0.0017314]
[1732948466973,0.11226,96842.0,96841.0,0.0027314]
[1732948467237,0.21510521,96842.0,96841.0,0.0027314]
[1732948467458,0.22410521,96842.0,96841.0,0.0037314]
[1732948469688,0.30430521,96842.0,96841.0,0.0037314]
[1732948470477,0.30397655,96842.0,96841.0,0.0037314]
[1732948476063,0.324935,96842.0,96841.0,0.0037314]
[1732948480324,0.30397655,96842.0,96841.0,0.0037314]
[1732948480526,0.30364681,96842.0,96841.0,0.0037314]
[1732948486964,0.30358768,96842.0,96841.0,0.0037314]
[1732948487362,0.30445358,96842.0,96841.0,0.0037314]
[1732948489887,0.35365358,96842.0,96841.0,0.0037314]
[1732948502037,0.36365358,96842.0,96841.0,0.0037314]
[1732948502896,0.35465358,96842.0,96841.0,0.0027314]
[1732948503341,0.37265358,96842.0,96841.0,0.0017314]
[1732948503567,0.37365358,96842.0,96841.0,0.0077314]
[1732948503788,0.3836036,96842.0,96841.0,0.0077314]
[1732948504246,0.3836036,96842.0,96808.0,0.00027868]
[1732948504247,0.01,96828.0,96808.0,0.00027868]
[1732948504459,0.23687743,96837.0,96808.0,0.00027868]
[1732948504460,0.10329,96814.0,96813.0,0.0108153]
[1732948504670,0.103292,96813.0,96808.0,0.00188771]
[1732948505147,0.1246,96813.0,96808.0,0.00188771]
[1732948505382,0.103296,96809.0,96808.0,5.974e-05]
[1732948505844,0.1246,96813.0,96808.0,5.974e-05]
[1732948506047,0.10284521,96809.0,96808.0,5.974e-05]
[1732948506262,0.0754,96832.0,96808.0,5.974e-05]
[1732948506482,0.01,96841.0,96825.0,0.103279]
[1732948506704,0.01,96841.0,96825.0,0.10510648]
[1732948507166,0.02035235,96835.0,96825.0,0.10510648]
[1732948507625,0.01,96841.0,96825.0,0.10510648]
[1732948507837,0.02076766,96837.0,96825.0,0.10510648]
[1732948508321,0.01,96841.0,96825.0,0.00182748]
[1732948508565,0.01,96835.0,96820.0,0.103283]
[1732948508792,0.01,96835.0,96810.0,0.1261]
[1732948508793,0.009,96826.0,96810.0,0.1261]
[1732948509033,0.009,96826.0,96823.0,0.10328]
[1732948509297,0.009,96826.0,96824.0,0.00133769]
[1732948509535,0.10284521,96834.0,96824.0,0.20789669]
[1732948509744,0.10284521,96834.0,96823.0,0.10328]
[1732948509962,0.009,96826.0,96823.0,0.1049768]
[1732948510190,0.10284521,96834.0,96825.0,0.206557]
[1732948510396,0.10284521,96834.0,96826.0,0.206556]
[1732948510622,0.10251648,96834.0,96827.0,0.206553]
[1732948510828,0.10251648,96834.0,96827.0,0.103276]
[1732948511042,0.10251648,96834.0,96828.0,0.103275]
[1732948511264,0.10251648,96834.0,96827.0,0.103275]
[1732948511476,0.10251648,96834.0,96829.0,0.103274]
[1732948511689,0.11251648,96834.0,96826.0,0.103277]
[1732948511897,0.11251648,96834.0,96825.0,0.0017318]
[1732948512152,0.11151648,96834.0,96828.0,0.103275]
[1732948512382,0.12251648,96834.0,96829.0,0.103274]
[1732948512621,0.11251648,96834.0,96829.0,0.103274]
[1732948512855,0.12151648,96834.0,96825.0,0.0017318]
[1732948513128,0.009,96834.0,96825.0,0.0017318]
[1732948513337,0.009,96834.0,96830.0,0.103273]
[1732948513576,0.018,96834.0,96831.0,0.103272]
[1732948513806,0.018,96834.0,96833.0,0.10327]
[1732948514255,0.009,96834.0,96833.0,0.10327]
[1732948514480,0.018,96834.0,96833.0,0.10327]
[1732948515147,0.018,96834.0,96833.0,0.10445203]
[1732948515362,0.0008659,96842.0,96833.0,0.00118203]
[1732948515574,0.009,96834.0,96833.0,0.31099103]
[1732948515818,0.018,96834.0,96833.0,0.309809]
[1732948516030,0.0008659,96842.0,96841.0,0.103262]
[1732948516270,0.0008659,96842.0,96841.0,0.10448459]
[1732948516919,0.0008657,96865.0,96864.0,0.103237]
[1732948517352,0.00146184,96865.0,96864.0,0.10506401]
[1732948518732,0.01846184,96865.0,96864.0,0.10506401]
[1732948518973,0.00946184,96865.0,96864.0,0.10506401]
[1732948519189,0.00146184,96865.0,96864.0,0.10506401]
[1732948519412,0.01046184,96865.0,96864.0,0.10506401]
[1732948519629,0.00146184,96865.0,96864.0,0.10506401]
[1732948520085,0.01046184,96865.0,96864.0,0.10506401]
[1732948520329,0.00146184,96865.0,96864.0,0.10506401]
[1732948520835,0.00913215,96865.0,96864.0,0.10506401]
[1732948521015,0.00113215,96865.0,96864.0,0.103237]
[1732948521482,0.00913215,96865.0,96864.0,0.10496934]
[1732948521693,0.01813215,96865.0,96864.0,0.10496934]
[1732948521900,0.00113215,96865.0,96864.0,0.10496934]
[1732948522415,0.01813215,96865.0,96864.0,0.10496934]
[1732948522622,0.00913215,96865.0,96864.0,0.10496934]
[1732948522841,0.01813215,96865.0,96864.0,0.10496934]
[1732948523293,0.00913215,96865.0,96864.0,0.10496934]
[1732948523514,0.01013215,96865.0,96864.0,0.10496934]
[1732948523948,0.01813215,96865.0,96864.0,0.10496934]
[1732948524160,0.01813215,96865.0,96864.0,0.103237]
[1732948524386,0.01013215,96865.0,96864.0,0.103237]
[1732948524809,0.1258,96864.0,96833.0,0.0782318]
[1732948525019,0.01,96860.0,96852.0,0.103249]
[1732948525220,0.01,96860.0,96833.0,0.0782318]
[1732948525221,0.10284521,96859.0,96853.0,0.10507532]
[1732948525440,0.10284521,96859.0,96854.0,0.103247]
[1732948525920,0.10284521,96859.0,96851.0,0.00182735]
[1732948526140,0.10284521,96859.0,96852.0,0.2065]
[1732948526350,0.10284521,96859.0,96849.0,0.206507]
[1732948526593,0.10284521,96859.0,96858.0,0.103243]
[1732948527216,0.10284521,96859.0,96856.0,0.103245]
[1732948527754,0.1258,96864.0,96857.0,0.103244]
[1732948527987,0.018,96859.0,96858.0,0.103243]
[1732948528210,0.009,96859.0,96858.0,0.103243]
[1732948528424,0.11284521,96863.0,96858.0,0.103243]
[1732948528660,0.018,96859.0,96858.0,0.103243]
[1732948528913,0.009,96859.0,96858.0,0.103243]
[1732948529159,0.018,96859.0,96858.0,0.103243]
[1732948529372,0.009,96859.0,96858.0,0.103243]
[1732948529812,0.009,96859.0,96856.0,0.00182726]
[1732948530034,0.009,96859.0,96854.0,0.103248]
[1732948530238,0.009,96859.0,96853.0,0.01094005]
[1732948530452,0.019,96863.0,96852.0,0.00182726]
[1732948530657,0.10284521,96862.0,96856.0,0.103245]
[1732948530875,0.009,96859.0,96856.0,0.103245]
[1732948531092,0.009,96859.0,96857.0,0.103244]
[1732948531298,0.10284521,96862.0,96857.0,0.103244]
[1732948531509,0.009,96859.0,96857.0,0.103244]
[1732948531982,0.009,96859.0,96855.0,0.103246]
[1732948531983,0.018,96859.0,96855.0,0.103246]
[1732948532147,0.10284521,96862.0,96856.0,0.103245]
[1732948532376,0.009,96859.0,96856.0,0.103245]
[1732948533713,0.10284521,96862.0,96853.0,0.00182694]
[1732948533882,0.009,96859.0,96855.0,0.103246]
[1732948534080,0.009,96859.0,96857.0,0.103244]
[1732948534283,0.009,96859.0,96849.0,0.01094335]
[1732948534589,0.10284521,96862.0,96850.0,0.2083313]
[1732948534800,0.009,96859.0,96850.0,0.0018273]
[1732948535006,0.009,96859.0,96855.0,0.103246]
[1732948535218,0.009,96859.0,96854.0,0.103247]
[1732948535406,0.009,96859.0,96854.0,0.10507431]
[1732948535555,0.018,96859.0,96854.0,0.00182731]
[1732948535774,0.009,96859.0,96853.0,0.00355871]
[1732948536000,0.009,96859.0,96855.0,0.103246]
[1732948536196,0.018,96859.0,96855.0,0.103246]
[1732948536400,0.009,96859.0,96855.0,0.103246]
[1732948536982,0.10284521,96862.0,96855.0,0.103246]
[1732948537188,0.009,96859.0,96856.0,0.103245]
[1732948537367,0.009,96859.0,96853.0,0.00355871]
[1732948537575,0.10284521,96862.0,96853.0,0.00355871]
[1732948538015,0.018,96859.0,96854.0,0.103247]
[1732948538393,0.10284521,96862.0,96855.0,0.103246]
[1732948538601,0.009,96859.0,96855.0,0.103246]
[1732948538847,0.11184521,96862.0,96853.0,0.00355866]
[1732948538977,0.11184521,96862.0,96854.0,0.103247]
[1732948539188,0.009,96859.0,96854.0,0.1050743]
[1732948539419,0.11184521,96862.0,96855.0,0.103246]
[1732948539623,0.11184521,96862.0,96855.0,0.103247]
[1732948539830,0.009,96859.0,96855.0,0.103247]
[1732948540234,0.009,96859.0,96853.0,0.01479345]
[1732948540479,0.009,96859.0,96857.0,0.103244]
[1732948541376,0.009,96859.0,96858.0,0.103243]
[1732948541599,0.009,96859.0,96858.0,0.10507023]
[1732948541830,0.00113215,96865.0,96864.0,0.103237]
[1732948542062,0.00113215,96865.0,96864.0,0.10506385]
[1732948542324,0.00113215,96865.0,96864.0,0.103237]
[1732948542536,0.00113215,96865.0,96864.0,0.10506385]
[1732948544308,0.00613215,96865.0,96864.0,0.10506385]
[1732948545020,0.01213215,96865.0,96864.0,0.10506385]
[1732948545233,0.00713215,96865.0,96864.0,0.10506385]
[1732948545646,0.01313215,96865.0,96864.0,0.10506385]
[1732948545857,0.00713215,96865.0,96864.0,0.10506385]
[1732948546086,0.01613215,96865.0,96864.0,0.10506385]
[1732948546325,0.01013215,96865.0,96864.0,0.11278677]
[1732948546555,0.01813215,96865.0,96864.0,0.11278677]
[1732948546953,0.01013215,96865.0,96864.0,0.11095992]
[1732948547434,0.00913215,96865.0,96864.0,0.11095992]
[1732948547894,0.01013215,96865.0,96864.0,0.11095992]
[1732948548105,0.01013215,96865.0,96864.0,0.00772292]
[1732948548106,0.00113215,96865.0,96864.0,0.00772292]
[1732948548316,0.09233215,96865.0,96864.0,0.11095992]
[1732948548546,0.10133215,96865.0,96864.0,0.11095992]
[1732948548784,0.09233215,96865.0,96864.0,0.11095992]
[1732948549014,0.10133215,96865.0,96864.0,0.00772292]
[1732948549227,0.09233215,96865.0,96864.0,0.00772292]
[1732948549453,0.18656815,96865.0,96864.0,0.00772292]
[1732948549692,0.08333215,96865.0,96864.0,0.00772292]
[1732948549915,0.09233215,96865.0,96864.0,0.00772292]
[1732948550379,0.19556815,96865.0,96864.0,0.00772292]
[1732948550550,0.18656815,96865.0,96864.0,0.00772292]
[1732948550797,0.19524493,96865.0,96864.0,0.00772292]
[1732948551215,0.20424493,96865.0,96864.0,0.00772292]
[1732948551485,0.10100893,96865.0,96864.0,0.00772292]
[1732948553410,0.20424493,96865.0,96864.0,0.00772292]
[1732948553829,0.10100893,96865.0,96864.0,0.00772292]
[1732948554518,0.10100893,96865.0,96864.0,0.20889092]
[1732948556764,0.10100893,96865.0,96864.0,0.31212792]
[1732948559764,0.01880893,96865.0,96864.0,0.31385912]
[1732948560262,0.01880893,96865.0,96864.0,0.21062212]
[1732948560697,0.01847925,96865.0,96864.0,0.21062212]
[1732948561596,0.06687925,96865.0,96864.0,0.21062212]
[1732948562475,0.17011525,96865.0,96864.0,0.21062212]
[1732948563106,0.06687925,96865.0,96864.0,0.21062212]
[1732948563314,0.36456046,96865.0,96864.0,0.21062212]
[1732948568341,0.36456046,96865.0,96864.0,0.21063081]
[1732948568902,0.37451048,96865.0,96864.0,0.21063081]
[1732948571693,0.37537608,96865.0,96864.0,0.2028992]
[1732948571870,0.37537608,96865.0,96864.0,0.21062941]
[1732948573376,0.39837608,96865.0,96864.0,0.21062941]
[1732948574022,0.38937608,96865.0,96864.0,0.21062941]
[1732948574300,0.41972151,96865.0,96864.0,0.21062941]
[1732948574504,0.44380036,96865.0,96864.0,0.21162941]
[1732948574718,0.44380036,96865.0,96864.0,0.2038992]
[1732948574927,0.45508208,96865.0,96864.0,0.18912404]
[1732948575147,0.45408208,96865.0,96864.0,0.18912404]
[1732948575354,0.45608208,96865.0,96864.0,0.19012404]
[1732948575778,0.45508208,96865.0,96864.0,0.11612405]
[1732948575981,0.45508208,96865.0,96864.0,0.0763829]
[1732948577975,0.45608208,96865.0,96864.0,0.0763829]
[1732948578486,0.42400323,96865.0,96864.0,0.01733344]
[1732948578692,0.42300323,96865.0,96864.0,0.01733344]
[1732948579110,0.42400323,96865.0,96864.0,0.01733344]
[1732948582147,0.42400323,96865.0,96864.0,1e-08]
[1732948582356,0.27889402,96857.0,96856.0,0.00169141]
[1732948582575,0.38173923,96857.0,96856.0,0.00169141]
[1732948583492,0.41208466,96857.0,96856.0,0.00169141]
[1732948584367,0.42208466,96857.0,96856.0,0.00169141]
[1732948584583,0.42408466,96857.0,96856.0,0.00169141]
[1732948585465,0.42408466,96857.0,96833.0,0.0017318]
[1732948585466,0.28626445,96834.0,96833.0,0.0017318]
[1732948585722,0.38910966,96834.0,96833.0,0.0017318]
[1732948586594,0.38910966,96834.0,96833.0,0.00184868]
[1732948588106,0.39110966,96834.0,96833.0,0.00184868]
[1732948590752,0.41167957,96834.0,96833.0,0.00184868]
[1732948597109,0.36177957,96834.0,96833.0,0.00184868]
[1732948597326,0.27897957,96834.0,96833.0,0.00184868]
[1732948598381,0.24863414,96834.0,96833.0,0.00184868]
[1732948600866,0.24830012,96834.0,96833.0,0.00184868]
[1732948601514,0.36124555,96834.0,96833.0,0.00184868]
[1732948604656,0.33090012,96834.0,96833.0,0.00184868]
[1732948606375,0.33176602,96834.0,96833.0,0.00184868]
[1732948607675,0.36211145,96834.0,96833.0,0.00184868]
[1732948610142,0.03321133,96834.0,96833.0,0.00184868]
[1732948610359,0.03321133,96834.0,96833.0,0.22921868]
[1732948610572,0.0028659,96834.0,96833.0,0.22921868]
[1732948611447,0.0018659,96834.0,96833.0,0.22921868]
[1732948611655,0.0108659,96834.0,96833.0,0.22921868]
[1732948612119,0.0098659,96834.0,96833.0,0.22921868]
[1732948612344,0.0188659,96834.0,96833.0,0.22921868]
[1732948612997,0.0188659,96834.0,96833.0,0.24020185]
[1732948613428,0.0278659,96834.0,96833.0,0.24120185]
[1732948613857,0.1311349,96834.0,96833.0,0.00284868]
[1732948616408,0.0278659,96834.0,96833.0,0.00284868]
[1732948617484,0.1311349,96834.0,96833.0,0.00284868]
[1732948617730,0.0278659,96834.0,96833.0,0.00284868]
[1732948618351,0.1311349,96834.0,96833.0,0.00284868]
[1732948619445,0.0278659,96834.0,96833.0,0.00284868]
[1732948620283,0.0278659,96834.0,96833.0,0.10611868]
[1732948620779,0.0278659,96834.0,96833.0,0.18401868]
[1732948620989,0.02753743,96834.0,96833.0,0.18401868]
[1732948621226,0.02753743,96834.0,96833.0,0.23001868]
[1732948624594,0.00953743,96834.0,96833.0,0.23001868]
[1732948624814,0.00053743,96834.0,96833.0,0.22901868]
[1732948625032,0.00953743,96834.0,96833.0,0.23101868]
[1732948625247,0.01853743,96834.0,96833.0,0.23101868]
[1732948629727,0.01853743,96834.0,96833.0,0.15311868]
[1732948630147,0.01853743,96834.0,96833.0,0.10711868]
[1732948630826,0.01820775,96834.0,96833.0,0.10711868]
[1732948631061,0.01820775,96834.0,96833.0,0.1089463]
[1732948632148,0.01820775,96834.0,96833.0,0.10711868]
[1732948632368,0.01820775,96834.0,96833.0,0.10894634]
[1732948633860,0.01820775,96834.0,96833.0,0.10711868]
[1732948634322,0.01820775,96834.0,96833.0,0.10894633]
[1732948645775,0.01820775,96834.0,96833.0,0.23546955]
[1732948645964,0.01820775,96834.0,96833.0,0.2336419]
[1732948646108,0.01820775,96834.0,96833.0,0.33648711]
[1732948650273,0.01820775,96834.0,96833.0,0.15521868]
[1732948650484,0.01820775,96834.0,96833.0,0.10711868]
[1732948651026,0.01820775,96834.0,96833.0,0.00384868]
[1732948651266,0.09600775,96834.0,96833.0,0.00384868]
[1732948651459,0.19927675,96834.0,96833.0,0.00384868]
[1732948651747,0.15385777,96834.0,96833.0,0.00384868]
[1732948652689,0.15385777,96834.0,96833.0,0.10711868]
[1732948652957,0.14485777,96834.0,96833.0,0.10611868]
[1732948653137,0.13585777,96834.0,96833.0,0.10511868]
[1732948653365,0.14485777,96834.0,96833.0,0.10511868]
[1732948653578,0.14390775,96834.0,96833.0,0.10511868]
[1732948653779,0.13490775,96834.0,96833.0,0.10511868]
[1732948654024,0.00920775,96834.0,96833.0,0.10511868]
[1732948654649,0.00020775,96834.0,96833.0,0.10511868]
[1732948655068,0.00920775,96834.0,96833.0,0.10511868]
[1732948655487,0.01820775,96834.0,96833.0,0.10511868]
[1732948656233,0.01820775,96834.0,96833.0,0.00184868]
[1732948656440,0.01820775,96834.0,96833.0,0.10511868]
[1732948671161,0.01787806,96834.0,96833.0,0.10511868]
[1732948672020,0.01787806,96834.0,96833.0,0.1532462]
[1732948672174,0.01787806,96834.0,96833.0,0.25641459]
[1732948672376,0.01787806,96834.0,96833.0,0.25458711]
[1732948672736,0.01787806,96834.0,96833.0,0.32988711]
[1732948673172,0.009,96834.0,96833.0,0.32988711]
[1732948673592,0.005,96834.0,96833.0,0.32988711]
[1732948674009,0.0768,96857.0,96856.0,0.103246]
[1732948675146,0.0858,96857.0,96856.0,0.103246]
[1732948675829,0.0948,96857.0,96856.0,0.103246]
[1732948676297,0.018,96857.0,96856.0,0.103246]
[1732948678842,0.018,96857.0,96856.0,0.11424366]
[1732948681478,0.0948,96857.0,96856.0,0.11424366]
[1732948683604,0.018,96857.0,96856.0,0.11424366]
[1732948687953,0.0197318,96857.0,96856.0,0.11424366]
[1732948688410,0.0197318,96857.0,96856.0,0.1160708]
[1732948694248,0.01826005,96857.0,96856.0,0.1160708]
[1732948695772,0.01826005,96857.0,96856.0,0.11424366]
[1732948696176,0.13886005,96857.0,96856.0,0.11424366]
[1732948700348,0.13886005,96857.0,96856.0,0.11510936]
[1732948700576,0.11886005,96857.0,96856.0,0.11510936]
[1732948702281,0.07326005,96857.0,96856.0,0.11510936]
[1732948707849,0.0008656,96865.0,96864.0,0.103237]
[1732948709198,0.00246167,96865.0,96864.0,0.103237]
[1732948709422,0.00246167,96865.0,96864.0,0.105237]
[1732948709860,0.00246167,96865.0,96864.0,0.10738729]
[1732948710067,0.00246167,96865.0,96864.0,0.2907325]
[1732948710279,0.00246167,96865.0,96864.0,0.28890543]
[1732948710500,0.00146167,96865.0,96864.0,0.28890543]
[1732948710710,0.00146167,96865.0,96864.0,0.28690543]
[1732948710963,0.00146167,96865.0,96864.0,0.28890543]
[1732948711185,0.00246167,96865.0,96864.0,0.29690543]
[1732948711431,0.00146167,96865.0,96864.0,0.28690543]
[1732948711636,0.00846167,96865.0,96864.0,0.10356022]
[1732948713993,0.00846167,96865.0,96864.0,0.10318035]
[1732948714226,0.00846167,96865.0,96864.0,0.10285713]
[1732948714452,0.00846167,96865.0,96864.0,0.104684]
[1732948717737,0.00846167,96865.0,96864.0,0.10285713]
[1732948717968,0.03586167,96874.0,96873.0,0.103227]
[1732948718926,0.11766167,96874.0,96873.0,0.103227]
[1732948719151,0.11766167,96874.0,96871.0,0.103229]
[1732948719375,0.0818,96873.0,96871.0,0.103229]
[1732948719886,0.0818,96873.0,96869.0,0.206462]
[1732948720121,0.0818,96873.0,96872.0,0.103229]
[1732948721050,0.0988,96873.0,96872.0,0.103229]
[1732948721511,0.0908,96873.0,96872.0,0.103229]
[1732948721736,0.1078,96873.0,96872.0,0.105229]
[1732948723232,0.1095314,96873.0,96872.0,0.105229]
[1732948724751,0.1095314,96873.0,96872.0,0.002]
[1732948725566,0.22270842,96873.0,96872.0,0.002]
[1732948725747,0.38263041,96873.0,96872.0,0.002]
[1732948726978,0.25340341,96873.0,96863.0,0.103238]
[1732948727265,0.0818,96871.0,96863.0,0.103238]
[1732948727486,0.0818,96869.0,96862.0,0.103239]